[Event "EYCC Girls U16 2018"]
[Site "Riga"]
[Date "2018.08.27"]
[Round "7"]
[White "Verbin, Valentina"]
[Black "Malicka, Maria"]
[Result "1-0"]
[ECO "C76"]
[WhiteElo "1838"]
[BlackElo "2047"]
[Annotator "NA"]
[PlyCount "101"]
[EventDate "2018.08.20"]
[EventType "swiss"]
[EventCountry "LAT"]
[SourceTitle "playchess.com"]
[Source "ChessBase"]
[SourceQuality "1"]
[TimeControl "40/5400+30:1800+30"]

1. e4 {[%emt 0:00:00]} e5 {[%emt 0:00:00]} 2. Nf3 {[%emt 0:00:00]} Nc6 {[%emt 0:00:00]} 3. Bb5 {[%emt 0:00:00]} g6 {[%emt 0:00:00]} 4. c3 {[%emt 0:00:00]} a6 {[%emt 0:00:04]} 5. Ba4 {[%emt 0:00:04]} d6 {[%emt 0:00:14]} 6. d4 {[%emt 0:00:17]} Bd7 {[%emt 0:00:14]} 7. Be3 {[%emt 0:01:55]} Bg7 {[%emt 0:01:51]} 8. O-O {[%emt 0:00:35]} Nf6 {[%emt 0:06:17]} 9. Nbd2 {[%emt 0:00:41]} O-O {[%emt 0:03:42]} 10. h3 {[%emt 0:05:26] C76: Spanische Partie (Moderne Steinitz-Verteidigung)} (10. Re1 Qe8 11. Bxc6 Bxc6 12. dxe5 Ng4 13. exd6 Nxe3 14. Rxe3 Rd8 15. e5 cxd6 16. exd6 Qd7 17. Nc4 Bb5 {1-0 (47) Alekseev,E (2616)-Van Foreest,J (2629) Riadh 2017}) 10... Re8 {[%emt 0:16:30]} 11. Bc2 {[%emt 0:01:56]} exd4 {[%emt 0:02:02]} 12. Nxd4 {[%emt 0:12:59]} d5 {[%emt 0:06:26]} 13. Bg5 $146 {[%emt 0:01:38]} ({Vorgänger:} 13. exd5 Nxd5 14. Bb3 Nxe3 15. fxe3 Re7 16. Bd5 Qe8 {½-½ (16) Sir,Z-Pliva,V Karvina 1987}) 13... Nxd4 {[%emt 0:06:03]} 14. cxd4 {[%emt 0:00:44]} h6 {[%emt 0:05:36]} 15. Bxf6 {[%emt 0:01:46]} Qxf6 {[%emt 0:00:26]} 16. e5 {[%emt 0:01:27]} Qf4 {[%emt 0:10:08]} 17. Nb3 {[%emt 0:07:40]} b6 {[%emt 0:06:14]} 18. g3 {[%emt 0:01:05]} Qg5 {[%emt 0:00:18]} 19. Kh2 f5 {[%emt 0:03:28]} 20. f4 {[%emt 0:07:10]} Qe7 {[%emt 0:00:09]} 21. Qf3 {[%emt 0:15:27]} Be6 {[%emt 0:08:09]} 22. a4 {[%emt 0:05:38]} c5 {[%emt 0:03:01]} 23. a5 {[%emt 0:00:19]} c4 {[%emt 0:00:34]} 24. Nd2 {[%emt 0:01:27]} Qb4 {[%emt 0:02:54]} 25. Qc3 {[%emt 0:01:17]} bxa5 {[%emt 0:04:29]} 26. Rxa5 {[%emt 0:09:30]} Reb8 {[%emt 0:00:20]} 27. Rb1 {[%emt 0:00:19]} Bf8 {[%emt 0:04:48]} 28. g4 {[%emt 0:03:09]} Kf7 {[%emt 0:05:13]} 29. gxf5 {[%emt 0:00:20]} gxf5 {[%emt 0:00:08]} 30. Ra4 {[%emt 0:09:44]} Qb6 {[%emt 0:01:45]} 31. Qe3 {[%emt 0:05:49]} Be7 {[%emt 0:01:31]} 32. b3 {[%emt 0:02:13]} cxb3 {[%emt 0:01:22]} 33. Rxb3 {[%emt 0:01:04]} Qc6 {[%emt 0:00:19]} 34. Rc3 {[%emt 0:00:06]} Qb5 {[%emt 0:00:57]} 35. Qf3 {[%emt 0:01:24]} Kg6 {[%emt 0:01:25]} 36. Ra1 {[%emt 0:01:34]} Kh7 {[%emt 0:00:37]} 37. Qh5 {[%emt 0:02:14]} Qd7 {[%emt 0:00:04]} 38. Ba4 {[%emt 0:01:08]} Qa7 {[%emt 0:00:41]} 39. Nf3 {[%emt 0:00:26]} Rb2+ {[%emt 0:00:31]} 40. Bc2 {[%emt 0:00:00]} Rg8 {[%emt 0:00:00]} 41. Kh1 {[%emt 0:01:25]} Qd7 {[%emt 0:09:42]} 42. Rxa6 {[%emt 0:01:59]} Rxc2 {[%emt 0:05:38]} 43. Rxc2 $18 {[%emt 0:00:20]} Qb5 {[%emt 0:02:49]} 44. Raa2 {[%emt 0:04:30]} Qf1+ {[%emt 0:09:29]} 45. Kh2 {[%emt 0:00:04]} Rg7 {[%emt 0:01:40]} 46. Rg2 {[%emt 0:01:19]} Bf7 47. Qxf5+ {[%emt 0:05:00]} Bg6 {[%emt 0:00:25]} 48. Qg4 {[%emt 0:01:14]} Bf8 49. f5 {[%emt 0:04:21]} Be8 {[%emt 0:00:20]} 50. Qf4 {[%emt 0:00:04]} Bh5 {[%emt 0:00:24]} 51. Ng5+ 1-0

[Event "EYCC Girls U16 2018"]
[Site "Riga"]
[Date "2018.08.28"]
[Round "8"]
[White "Kucharska, Honorata"]
[Black "Verbin, Valentina"]
[Result "1/2-1/2"]
[ECO "B53"]
[WhiteElo "2030"]
[BlackElo "1838"]
[Annotator "NA RC"]
[PlyCount "90"]
[EventDate "2018.08.20"]
[EventType "swiss"]
[EventCountry "LAT"]
[SourceTitle "playchess.com"]
[Source "ChessBase"]
[SourceQuality "1"]
[TimeControl "40/5400+30:1800+30"]

1. e4 {[%emt 0:00:00]} c5 {[%emt 0:00:00]} 2. Nf3 {[%emt 0:00:00]} d6 {[%emt 0:00:00]} 3. d4 {[%emt 0:00:00]} cxd4 {[%emt 0:00:09]} 4. Qxd4 {[%emt 0:00:00]} Nc6 {[%emt 0:00:11]} 5. Bb5 {[%emt 0:00:06]} Bd7 {[%emt 0:00:10]} 6. Bxc6 {[%emt 0:00:09]} Bxc6 {[%emt 0:00:04]} 7. Nc3 {[%emt 0:00:16]} h6 {[%emt 0:00:09]} 8. Qd3 {[%emt 0:02:38]} e5 {[%emt 0:00:52]} 9. Nd2 {[%emt 0:00:43] B53: Sicilian: 2...d6: Lines with Qxd4} Nf6 {[%emt 0:00:53]} 10. Nc4 {[%emt 0:00:52]} b5 {[%emt 0:09:22]} (10... Be7 11. Ne3 O-O 12. O-O Re8 13. a4 a6 14. a5 b5 15. axb6 Qxb6 16. Ncd5 Nxd5 17. Nxd5 Bxd5 18. Qxd5 {½-½ (18) Zvjaginsev,V (2643)-Navara,D (2708) Rijeka 2010}) 11. Ne3 {[%emt 0:02:26]} Rc8 {[%emt 0:05:58]} 12. O-O {[%emt 0:04:52]} Qd7 {[%emt 0:02:27]} 13. f3 $146 {[%emt 0:04:05]} ({Predecessor:} 13. Ncd5 Bxd5 14. exd5 Nh5 15. a4 b4 16. Qb5 {0-1 (46) Savitskiy,S (2347)-Alikulov,E (2232) Moscow 2014}) 13... b4 {[%emt 0:03:09]} 14. Ne2 {[%emt 0:06:37]} d5 {[%emt 0:01:29]} 15. exd5 {[%emt 0:04:34]} Nxd5 {[%emt 0:05:02]} 16. Nxd5 {[%emt 0:01:24]} Qxd5 {[%emt 0:00:31]} 17. Be3 {[%emt 0:02:48]} Qxd3 {[%emt 0:00:22]} 18. cxd3 {[%emt 0:00:14]} Bb5 {[%emt 0:04:09]} 19. Rac1 {[%emt 0:06:13]} Rd8 {[%emt 0:07:50]} 20. Rfe1 {[%emt 0:04:22]} Bxd3 {[%emt 0:04:17]} 21. Nf4 {[%emt 0:03:47]} Be7 {[%emt 0:06:13]} ({Jedoch nicht} 21... exf4 $2 22. Bb6+ Kd7 23. Bxd8 $18) 22. Nxd3 {[%emt 0:05:15]} Rxd3 {[%emt 0:00:06]} 23. Rc7 {[%emt 0:07:29]} Bd8 {[%emt 0:04:38]} 24. Rxa7 {[%emt 0:00:51]} O-O {[%emt 0:00:53]} 25. Bc5 {[%emt 0:03:18]} Re8 {[%emt 0:02:41]} 26. Rb7 {[%emt 0:00:07]} Rd2 {[%emt 0:12:00]} 27. Rb8 {[%emt 0:05:05]} f6 {[%emt 0:15:33]} 28. Bxb4 {[%emt 0:05:00]} Rxb2 {[%emt 0:00:14]} 29. Rd1 {[%emt 0:06:53]} Kf7 {[%emt 0:02:13]} 30. Rd7+ {[%emt 0:02:00]} Ke6 {[%emt 0:00:12]} 31. Rd6+ {[%emt 0:01:03]} Kf7 {[%emt 0:00:59]} 32. a3 {[%emt 0:07:18]} Be7 {[%emt 0:01:31]} 33. Rb7 {[%emt 0:00:35]} Kg6 {[%emt 0:07:51]} 34. Rdd7 {[%emt 0:01:12]} Rc8 {[%emt 0:00:19]} 35. h4 {[%emt 0:00:55]} Bxb4 {[%emt 0:02:05]} 36. Rxg7+ {[%emt 0:00:46]} Kh5 {[%emt 0:00:14]} 37. axb4 {[%emt 0:00:37]} Rc4 {[%emt 0:01:46]} 38. Rbf7 {[%emt 0:03:41]} Rf4 {[%emt 0:00:34]} 39. Rf8 {[%emt 0:03:18]} Rbxb4 {[%emt 0:01:09]} 40. Rh8 {[%emt 0:00:00]} e4 {[%emt 0:00:00]} 41. fxe4 {[%emt 0:06:15]} Rb1+ {[%emt 0:04:04]} 42. Kh2 {[%emt 0:00:04]} Rxh4+ {[%emt 0:00:09]} 43. Kg3 {[%emt 0:00:04]} Rb3+ {[%emt 0:00:56]} 44. Kf2 {[%emt 0:00:28]} Rxe4 {[%emt 0:00:16]} 45. Rgh7 $11 {[%emt 0:01:08]} Rf4+ {[%emt 0:01:35]} 1/2-1/2

[Event "EYCC Girls U16 2018"]
[Site "Riga"]
[Date "2018.08.28"]
[Round "8"]
[White "Grigorieva, Yulia"]
[Black "Nestorovic, Katarina"]
[Result "1-0"]
[ECO "E16"]
[WhiteElo "1992"]
[BlackElo "1995"]
[Annotator "NA RC"]
[PlyCount "61"]
[EventDate "2018.08.20"]
[EventType "swiss"]
[EventCountry "LAT"]
[SourceTitle "playchess.com"]
[Source "ChessBase"]
[SourceQuality "1"]
[TimeControl "40/5400+30:1800+30"]

1. d4 {[%emt 0:00:00]} Nf6 {[%emt 0:00:00]} 2. c4 {[%emt 0:00:00]} e6 {[%emt 0:00:00]} 3. Nf3 {[%emt 0:00:00]} Bb4+ {[%emt 0:00:33]} 4. Bd2 {[%emt 0:00:06]} Qe7 {[%emt 0:00:13]} 5. g3 {[%emt 0:00:42]} Nc6 {[%emt 0:01:27]} 6. Nc3 {[%emt 0:00:41]} O-O {[%emt 0:05:57]} 7. Bg2 {[%emt 0:01:43]} Bxc3 {[%emt 0:01:03]} 8. Bxc3 {[%emt 0:00:10]} Ne4 {[%emt 0:00:16]} 9. Rc1 {[%emt 0:00:55]} Nxc3 {[%emt 0:00:23]} 10. Rxc3 {[%emt 0:00:53]} d6 {[%emt 0:00:19]} 11. d5 {[%emt 0:00:49]} Nb8 {[%emt 0:22:51]} 12. dxe6 {[%emt 0:01:12]} fxe6 {[%emt 0:00:36]} 13. O-O {[%emt 0:02:08]} a5 {[%emt 0:07:55]} 14. c5 {[%emt 0:11:50]} dxc5 {[%emt 0:05:24]} 15. Qc2 {[%emt 0:05:37]} Nd7 {[%emt 0:01:47]} 16. h4 {[%emt 0:04:14]} Ra6 {[%emt 0:07:55]} 17. Ng5 {[%emt 0:05:01]} g6 $16 {[%emt 0:01:18]} 18. Be4 {[%emt 0:13:10]} b5 {[%emt 0:17:05]} 19. f4 {[%emt 0:12:27]} Qg7 {[%emt 0:05:27]} 20. Rf2 {[%emt 0:14:40]} Nf6 {[%emt 0:08:37]} 21. Rxc5 {[%emt 0:05:45]} Ng4 {[%emt 0:00:52]} 22. Rf3 {[%emt 0:12:16]} Qd4+ {[%emt 0:00:44]} 23. Kg2 {[%emt 0:00:20]} Rd6 {[%emt 0:08:23]} 24. Rxc7 {[%emt 0:04:29]} Bd7 {[%emt 0:00:05]} 25. Bxg6 {[%emt 0:01:47]} Ne3+ {[%emt 0:00:05]} 26. Rxe3 {[%emt 0:00:13]} Qxe3 {[%emt 0:00:01]} 27. Be8 {[%emt 0:01:31]} Rf5 {[%emt 0:01:59]} 28. Rxd7 {[%emt 0:00:27]} Rxd7 {[%emt 0:02:11]} 29. Bxd7 {[%emt 0:00:08]} Rf6 {[%emt 0:00:30]} 30. Bxe6+ {[%emt 0:00:50]} Rxe6 {[%emt 0:00:19]} 31. Qxh7+ {[%emt 0:00:06]} 1-0

[Event "EYCC Girls U16 2018"]
[Site "Riga"]
[Date "2018.08.28"]
[Round "8"]
[White "Swiech, Joanna"]
[Black "Bucur, Denisa Andreea"]
[Result "1/2-1/2"]
[ECO "D02"]
[WhiteElo "1946"]
[BlackElo "2077"]
[Annotator "NA RC"]
[PlyCount "70"]
[EventDate "2018.08.20"]
[EventType "swiss"]
[EventCountry "LAT"]
[SourceTitle "playchess.com"]
[Source "ChessBase"]
[SourceQuality "1"]
[TimeControl "40/5400+30:1800+30"]

1. Nf3 {[%emt 0:00:00]} d5 {[%emt 0:00:00]} 2. d4 {[%emt 0:00:00]} Nf6 {[%emt 0:00:08]} 3. Bf4 {[%emt 0:00:09]} c5 {[%emt 0:00:34]} 4. e3 {[%emt 0:00:30]} Nc6 {[%emt 0:01:30]} 5. c3 {[%emt 0:00:45]} Qb6 {[%emt 0:00:41]} 6. Qb3 {[%emt 0:01:42]} c4 {[%emt 0:01:00]} 7. Qxb6 {[%emt 0:01:14]} axb6 {[%emt 0:00:02]} 8. Nbd2 {[%emt 0:10:49]} Bf5 {[%emt 0:01:02] D02: 1 d4 d5 2 Nf3 sidelines, including 2...Nf6 3 g3 and 2...Nf6 3 Bf4} 9. Be2 {[%emt 0:01:40]} (9. a3 h6 10. Be2 b5 11. O-O e6 12. Ne5 Nxe5 13. dxe5 Nd7 14. Nf3 Bg4 15. Nd4 Bxe2 16. Nxe2 Nc5 17. Nd4 Ra5 18. Bg3 Be7 19. f3 O-O 20. Rad1 {½-½ (52) Eljanov,P (2717)-Bluebaum,M (2588) Berlin 2015}) 9... b5 {[%emt 0:02:33]} 10. Nh4 {[%emt 0:06:44]} Bc2 {[%emt 0:08:02]} 11. Rc1 {[%emt 0:07:28]} Bg6 {[%emt 0:01:20]} 12. Nxg6 {[%emt 0:01:05]} hxg6 {[%emt 0:00:02]} 13. a3 {[%emt 0:00:26]} e6 {[%emt 0:00:51]} 14. Bf3 $146 {[%emt 0:03:13]} ({Predecessor:} 14. Nf3 Be7 15. h3 Ne4 {½-½ (66) Mondelo Fidalgo,A (1739)-Ortiz Amenos,J (2039) Linares 2014}) 14... Be7 {[%emt 0:08:03]} 15. g4 {[%emt 0:08:52]} Nd7 {[%emt 0:07:57]} 16. e4 {[%emt 0:06:27]} Nb6 {[%emt 0:00:26]} 17. O-O {[%emt 0:04:53]} O-O {[%emt 0:06:58]} 18. Rc2 {[%emt 0:01:30]} dxe4 {[%emt 0:08:09]} 19. Bxe4 {[%emt 0:02:34]} Nd5 {[%emt 0:16:55]} 20. Be5 {[%emt 0:08:54]} f6 {[%emt 0:04:23]} 21. Bxd5 {[%emt 0:02:50]} exd5 {[%emt 0:00:02]} 22. Bf4 {[%emt 0:00:53]} b4 {[%emt 0:05:28]} 23. axb4 {[%emt 0:00:50]} Bxb4 {[%emt 0:00:09]} 24. Nf3 {[%emt 0:06:07]} Be7 {[%emt 0:00:45]} 25. Re1 {[%emt 0:00:43]} Kf7 {[%emt 0:09:20]} 26. Rce2 {[%emt 0:00:33]} Rfe8 {[%emt 0:06:16]} 27. Re6 {[%emt 0:04:36]} Bf8 {[%emt 0:01:58]} 28. Rxe8 {[%emt 0:00:34]} Rxe8 {[%emt 0:00:02]} 29. Rxe8 {[%emt 0:00:35]} Kxe8 {[%emt 0:00:01]} 30. Kf1 {[%emt 0:01:50]} b5 {[%emt 0:01:35]} 31. Ke2 {[%emt 0:01:10]} b4 {[%emt 0:01:05]} 32. Ne1 {[%emt 0:01:05]} Kd7 {[%emt 0:02:21]} 33. Ng2 {[%emt 0:00:34]} bxc3 {[%emt 0:01:23]} 34. bxc3 $11 {[%emt 0:00:05]} Ba3 {[%emt 0:00:37]} 35. Bd2 {[%emt 0:00:49]} Ne7 {[%emt 0:02:08]} 1/2-1/2

[Event "EYCC Girls U16 2018"]
[Site "Riga"]
[Date "2018.08.29"]
[Round "9"]
[White "Bucur, Denisa Andreea"]
[Black "Aubert, Estee"]
[Result "0-1"]
[ECO "A48"]
[WhiteElo "2077"]
[BlackElo "1934"]
[Annotator "NA"]
[PlyCount "87"]
[EventDate "2018.08.20"]
[EventType "swiss"]
[EventCountry "LAT"]
[SourceTitle "playchess.com"]
[Source "ChessBase"]
[SourceQuality "1"]
[TimeControl "40/5400+30:1800+30"]

1. d4 {[%emt 0:00:00]} Nf6 {[%emt 0:00:00]} 2. Nf3 {[%emt 0:00:00]} g6 {[%emt 0:00:00]} 3. c4 {[%emt 0:00:00]} Bg7 {[%emt 0:00:00]} 4. g3 {[%emt 0:00:12]} c5 {[%emt 0:00:00]} 5. Bg2 {[%emt 0:01:11]} Qa5+ {[%emt 0:00:34]} 6. Bd2 {[%emt 0:06:51]} Qb6 {[%emt 0:00:07]} 7. dxc5 {[%emt 0:08:21]} Qxc5 {[%emt 0:00:30] E60: King's Indian: Unusual lines and Fianchetto Variation without Nc3} 8. Qb3 {[%emt 0:00:31]} Ne4 {[%emt 0:08:58]} 9. Be3 {[%emt 0:01:03]} Qa5+ {[%emt 0:03:31]} 10. Nbd2 {[%emt 0:01:45]} Nc6 {[%emt 0:02:41]} 11. O-O {[%emt 0:06:26]} Nc5 {[%emt 0:03:29]} (11... Nd6 12. Rfd1 Nf5 13. Nf1 Nxe3 14. Nxe3 O-O 15. Rac1 {0-1 (54) Grachev,B (2672)-Inarkiev,E (2666) Vladivostok 2014}) 12. Qc2 {[%emt 0:05:06] LiveBook: 3 Games} d6 {[%emt 0:17:13]} 13. Nb3 {[%emt 0:03:04]} Nxb3 {[%emt 0:09:03]} 14. axb3 {[%emt 0:01:11]} Bf5 $146 {[%emt 0:03:43]} ({Predecessor:} 14... Qc7 15. Qd2 {1-0 (37) Itkis,B (2440)-Milu,R (2425) Predeal 1997}) 15. Qc1 {[%emt 0:00:26]} Qc7 {[%emt 0:01:31]} 16. Qd2 {[%emt 0:04:36]} O-O {[%emt 0:02:10]} 17. Nd4 {[%emt 0:03:40]} Nxd4 {[%emt 0:01:50]} 18. Bxd4 {[%emt 0:00:02]} Bxd4 {[%emt 0:01:17]} 19. Qxd4 {[%emt 0:00:02]} a5 {[%emt 0:07:21]} 20. Ra3 {[%emt 0:02:40]} Rac8 {[%emt 0:02:42]} 21. Rc1 {[%emt 0:14:24]} b6 {[%emt 0:01:26]} 22. b4 {[%emt 0:15:45]} axb4 {[%emt 0:01:05]} 23. Rb3 {[%emt 0:00:06]} Qc5 {[%emt 0:01:04]} 24. Qd2 {[%emt 0:00:06]} b5 {[%emt 0:01:53]} 25. Rxb4 {[%emt 0:01:44]} bxc4 {[%emt 0:04:10]} 26. Rbxc4 {[%emt 0:02:48]} Qxc4 {[%emt 0:00:46]} 27. Rxc4 {[%emt 0:00:03]} Rxc4 {[%emt 0:00:03]} 28. Qe3 {[%emt 0:00:23]} Rb8 {[%emt 0:02:01]} 29. b3 {[%emt 0:06:03]} Rc2 {[%emt 0:01:04]} 30. Be4 {[%emt 0:01:07]} Bxe4 {[%emt 0:03:44]} 31. Qxe4 {[%emt 0:00:02]} Rc7 {[%emt 0:00:13]} 32. b4 {[%emt 0:03:58]} Rcb7 {[%emt 0:00:19]} 33. h4 {[%emt 0:00:43]} h5 {[%emt 0:01:59]} 34. Kg2 {[%emt 0:00:59]} e6 {[%emt 0:00:29]} 35. Qd4 {[%emt 0:01:59]} d5 {[%emt 0:00:12]} 36. Qf6 {[%emt 0:01:13]} Rxb4 {[%emt 0:00:26]} 37. Qe5 {[%emt 0:01:13]} Rc8 {[%emt 0:01:30]} 38. Qd6 {[%emt 0:00:39]} Rb2 {[%emt 0:00:44]} 39. g4 {[%emt 0:03:30]} Rxe2 {[%emt 0:03:35]} 40. gxh5 {[%emt 0:00:00]} Rcc2 {[%emt 0:00:00]} 41. Qd8+ {[%emt 0:00:25]} Kh7 {[%emt 0:15:08]} 42. h6 $19 {[%emt 0:11:34]} (42. hxg6+ $11 Kg7 43. gxf7 Rxf2+ 44. Kg3 Rxf7 45. Qg5+ Kh7 46. Qh5+ Kg8 47. Qe5) 42... Rxf2+ {[%emt 0:00:17]} 43. Kg3 Rg2+ 44. Kf3 0-1

[Event "EYCC Girls U16 2018"]
[Site "Riga"]
[Date "2018.08.29"]
[Round "9"]
[White "Swiech, Joanna"]
[Black "Malicka, Maria"]
[Result "1/2-1/2"]
[ECO "A22"]
[WhiteElo "1946"]
[BlackElo "2047"]
[Annotator "NA"]
[PlyCount "140"]
[EventDate "2018.08.20"]
[EventType "swiss"]
[EventCountry "LAT"]
[SourceTitle "playchess.com"]
[Source "ChessBase"]
[SourceQuality "1"]
[TimeControl "40/5400+30:1800+30"]

1. c4 {[%emt 0:00:00]} e5 {[%emt 0:00:00]} 2. Nc3 {[%emt 0:00:00]} Nf6 {[%emt 0:00:00]} 3. g3 {[%emt 0:00:09]} Nc6 {[%emt 0:00:05]} 4. Bg2 {[%emt 0:00:09]} Bc5 {[%emt 0:00:09]} 5. e3 {[%emt 0:01:21]} d5 {[%emt 0:00:09] A25: English Opening vs King's Indian with ...Nc6 but without early d3} (5... a6 6. Nge2 Ba7 7. b3 d6 8. Bb2 O-O 9. O-O Bf5 10. Nd5 Nxd5 11. cxd5 Nb4 12. d4 exd4 13. Bxd4 c5 {1-0 (32) Romanov,E (2617)-Ter Sahakyan,S (2563) chess.com INT 2018}) 6. d3 {[%emt 0:10:15]} dxc4 $146 {[%emt 0:08:06]} ({Predecessor:} 6... Be6 7. b3 d4 8. Nce2 Ng4 9. e4 Qf6 10. Nf3 h5 11. Bg5 Qg6 {0-1 (55) Viol,J-Schoeneberger,T (1393) Wiesbaden 2012}) 7. dxc4 {[%emt 0:03:11]} Qxd1+ {[%emt 0:00:37]} 8. Kxd1 {[%emt 0:00:30]} Be6 {[%emt 0:16:03]} 9. Bxc6+ {[%emt 0:09:22]} bxc6 {[%emt 0:00:08]} 10. b3 {[%emt 0:00:17]} O-O-O+ {[%emt 0:05:05]} 11. Ke2 {[%emt 0:03:28]} e4 {[%emt 0:08:55]} ({Better is} 11... Bf5 $17 12. Bb2 Rhe8) 12. f3 {[%emt 0:02:34]} (12. h3 $1 $15) 12... exf3+ {[%emt 0:07:40]} 13. Nxf3 {[%emt 0:00:11]} Bg4 {[%emt 0:00:53]} 14. h3 {[%emt 0:06:14]} Bb4 {[%emt 0:13:24]} 15. Bb2 {[%emt 0:03:48]} Bxf3+ {[%emt 0:00:33]} 16. Kxf3 {[%emt 0:00:08]} Rd2 {[%emt 0:04:43]} 17. Na4 {[%emt 0:05:19]} Re8 {[%emt 0:04:05]} 18. Bxf6 {[%emt 0:05:22]} gxf6 {[%emt 0:00:07]} 19. a3 {[%emt 0:01:05]} Bf8 {[%emt 0:05:18]} 20. Rhd1 {[%emt 0:05:41]} Red8 {[%emt 0:05:15]} 21. Nc3 {[%emt 0:05:43]} R2d3 {[%emt 0:00:56]} 22. Rxd3 {[%emt 0:00:42]} Rxd3 {[%emt 0:00:02]} 23. Ne4 {[%emt 0:02:49]} f5 {[%emt 0:00:27]} 24. Ng5 {[%emt 0:01:57]} Rxb3 {[%emt 0:01:47]} 25. Nxh7 {[%emt 0:01:20]} Bh6 {[%emt 0:05:00]} 26. Kg2 {[%emt 0:00:57]} Rxe3 {[%emt 0:00:52]} 27. Rf1 {[%emt 0:00:12]} f4 {[%emt 0:03:59]} 28. gxf4 {[%emt 0:01:43]} Rxa3 {[%emt 0:00:17]} 29. Ng5 {[%emt 0:00:16]} f6 {[%emt 0:04:35]} 30. Ne4 {[%emt 0:00:38]} f5 {[%emt 0:01:09]} 31. Ng3 {[%emt 0:00:28]} Ra2+ {[%emt 0:01:20]} 32. Kf3 {[%emt 0:00:21]} Ra3+ {[%emt 0:00:01]} 33. Kg2 {[%emt 0:00:13]} Ra2+ {[%emt 0:00:02]} 34. Kf3 {[%emt 0:00:05]} Ra3+ {[%emt 0:00:02]} 35. Kg2 {[%emt 0:00:03]} Ra5 {[%emt 0:00:35]} 36. Kf3 {[%emt 0:00:21]} Kd7 {[%emt 0:02:29]} 37. Rd1+ {[%emt 0:01:19]} Ke6 {[%emt 0:00:23]} 38. Nf1 {[%emt 0:01:31]} Ra3+ {[%emt 0:01:38]} 39. Ne3 {[%emt 0:00:07]} a5 {[%emt 0:00:19]} 40. Rd8 {[%emt 0:00:00]} Bg7 {[%emt 0:00:00]} 41. Ke2 {[%emt 0:00:52]} a4 {[%emt 0:10:37]} 42. Rc8 {[%emt 0:00:46]} Kd7 {[%emt 0:07:15]} 43. Rg8 {[%emt 0:01:04]} Bb2 {[%emt 0:00:31]} 44. Ra8 {[%emt 0:00:45]} Bc1 {[%emt 0:01:29]} 45. Nxf5 {[%emt 0:00:28]} Bxf4 {[%emt 0:00:12]} 46. h4 {[%emt 0:00:28]} c5 {[%emt 0:05:10]} 47. Ra5 {[%emt 0:05:51]} Ke6 {[%emt 0:04:51]} 48. Rxc5 {[%emt 0:01:55]} Be5 {[%emt 0:00:19]} 49. Nh6 {[%emt 0:01:04]} Rg3 {[%emt 0:03:44]} 50. Nf7 {[%emt 0:02:31]} Bf4 {[%emt 0:02:01]} 51. Ng5+ {[%emt 0:00:44]} Kd7 {[%emt 0:01:16]} 52. Ra5 {[%emt 0:03:18]} a3 {[%emt 0:00:08]} 53. Kd1 {[%emt 0:01:29]} Bd6 {[%emt 0:01:07]} 54. Ne4 {[%emt 0:01:55]} Rg1+ {[%emt 0:00:02]} 55. Kc2 {[%emt 0:00:08]} Bb4 {[%emt 0:00:25]} 56. Ra4 {[%emt 0:00:19]} c5 {[%emt 0:01:03]} 57. Nf6+ {[%emt 0:01:36]} Ke6 {[%emt 0:00:17]} 58. Nd5 {[%emt 0:00:44]} Rh1 {[%emt 0:00:44]} 59. h5 {[%emt 0:00:54]} Ke5 {[%emt 0:00:36]} 60. Kb3 {[%emt 0:02:05]} Rh3+ {[%emt 0:00:21]} 61. Ka2 {[%emt 0:00:08]} Rh2+ {[%emt 0:00:03]} 62. Ka1 {[%emt 0:00:43]} Rh1+ {[%emt 0:00:13]} 63. Ka2 {[%emt 0:00:05]} Rh2+ {[%emt 0:00:01]} 64. Ka1 {[%emt 0:00:05]} Rh1+ {[%emt 0:01:44]} 65. Ka2 {[%emt 0:00:04]} Rh2+ {[%emt 0:00:02]} 66. Ka1 {[%emt 0:00:06]} Rb2 {[%emt 0:00:54]} 67. h6 {[%emt 0:00:25]} Kd4 {[%emt 0:00:36]} 68. h7 {[%emt 0:01:01]} Rh2 {[%emt 0:00:03]} 69. Nxb4 $11 {[%emt 0:01:27]} cxb4 {[%emt 0:00:54]} 70. Rxb4 {[%emt 0:00:10]} Ke5 1/2-1/2